[Event "Titled Tuesday Blitz April 12 Late 2022"]
[White "O`Gorman, Tom"]
[Black "Dimakiling, Oliver"]
[WhiteFideId "2508249"]
[BlackFideId "5202248"]
[WhiteElo "2247"]
[BlackElo "2426"]
[Result "1-0"]
[Round "07"]
[TimeControl "180+1"]
[Date "2022.04.12"]
[WhiteClock "0:00:11"]
[BlackClock "0:00:02"]

1. e4 {[%clk 0:03:00]}  c5 {[%clk 0:02:58]} 2. Nf3 {[%clk 0:03:00]}  Nc6 {[%clk 0:02:58]} 3. d4 {[%clk 0:02:57]}  cxd4 {[%clk 0:02:58]} 4. Nxd4 {[%clk 0:02:58]}  Nf6 {[%clk 0:02:59]} 5. Nc3 {[%clk 0:02:58]}  d6 {[%clk 0:02:59]} 6. f3 {[%clk 0:02:56]}  Bd7 {[%clk 0:02:58]} 7. Be3 {[%clk 0:02:56]}  a6 {[%clk 0:02:58]} 8. Qd2 {[%clk 0:02:54]}  Rc8 {[%clk 0:02:58]} 9. g4 {[%clk 0:02:52]}  h6 {[%clk 0:02:58]} 10. h4 {[%clk 0:02:50]}  Na5 {[%clk 0:02:58]} 11. O-O-O {[%clk 0:02:48]}  Nc4 {[%clk 0:02:57]} 12. Bxc4 {[%clk 0:02:48]}  Rxc4 {[%clk 0:02:57]} 13. g5 {[%clk 0:02:48]}  Nh5 {[%clk 0:02:55]} 14. g6 {[%clk 0:02:41]}  Be6 {[%clk 0:02:28]} 15. Rhg1 {[%clk 0:02:25]}  Qc8 {[%clk 0:02:08]} 16. gxf7+ {[%clk 0:01:50]}  Bxf7 {[%clk 0:02:07]} 17. f4 {[%clk 0:01:47]}  b5 {[%clk 0:01:37]} 18. Kb1 {[%clk 0:01:46]}  Nf6 {[%clk 0:01:33]} 19. e5 {[%clk 0:01:44]}  b4 {[%clk 0:01:32]} 20. Na4 {[%clk 0:01:40]}  Nd5 {[%clk 0:01:29]} 21. e6 {[%clk 0:01:37]}  Bh5 {[%clk 0:01:26]} 22. Rde1 {[%clk 0:01:30]}  g6 {[%clk 0:01:15]} 23. Nb3 {[%clk 0:01:24]}  Qc6 {[%clk 0:01:12]} 24. Na5 {[%clk 0:01:12]}  Qxa4 {[%clk 0:01:11]} 25. Nxc4 {[%clk 0:01:13]}  Qb5 {[%clk 0:01:09]} 26. Qd3 {[%clk 0:00:56]}  Bg7 {[%clk 0:01:04]} 27. f5 {[%clk 0:00:52]}  Rf8 {[%clk 0:01:00]} 28. Bd4 {[%clk 0:00:34]}  Bxd4 {[%clk 0:00:42]} 29. Qxd4 {[%clk 0:00:35]}  Rxf5 {[%clk 0:00:42]} 30. Rgf1 {[%clk 0:00:32]}  Bf3 {[%clk 0:00:31]} 31. Ne3 {[%clk 0:00:22]}  Rf4 {[%clk 0:00:29]} 32. Qh8+ {[%clk 0:00:21]}  Rf8 {[%clk 0:00:29]} 33. Nxd5 {[%clk 0:00:19]}  Qxd5 {[%clk 0:00:26]} 34. Qxh6 {[%clk 0:00:19]}  a5 {[%clk 0:00:20]} 35. Qxg6+ {[%clk 0:00:19]}  Kd8 {[%clk 0:00:20]} 36. Qg5 {[%clk 0:00:18]}  Qa8 {[%clk 0:00:15]} 37. Qe3 {[%clk 0:00:18]}  Rf6 {[%clk 0:00:14]} 38. Rf2 {[%clk 0:00:17]}  Kc7 {[%clk 0:00:10]} 39. Ref1 {[%clk 0:00:16]}  Bd5 {[%clk 0:00:03]} 40. Rxf6 {[%clk 0:00:12]}  exf6 {[%clk 0:00:03]} 41. e7 {[%clk 0:00:12]}  Bc6 {[%clk 0:00:03]} 42. Rxf6 {[%clk 0:00:12]}  Be8 {[%clk 0:00:03]} 43. Rf1 {[%clk 0:00:12]}  Qa6 {[%clk 0:00:02]} 44. Re1 {[%clk 0:00:12]}  a4 {[%clk 0:00:01]} 45. b3 {[%clk 0:00:12]}  a3 {[%clk 0:00:01]} 46. Qd4 {[%clk 0:00:12]}  Qb5 {[%clk 0:00:01]} 47. Re4 {[%clk 0:00:11]}  Qc4 {[%clk 0:00:02]} 48. Qxc4+ {[%clk 0:00:11]} 1-0


[Site "https://www.chess.com"]

[Event "Titled Tuesday Blitz April 12 Late 2022"]
[White "Ozates, Tuna"]
[Black "Gracia Alvarez, Gerardo Antonio"]
[WhiteFideId "6354521"]
[BlackFideId "5109124"]
[WhiteElo "1887"]
[BlackElo "2139"]
[Result "1-0"]
[Round "07"]
[TimeControl "180+1"]
[Date "2022.04.13"]
[WhiteClock "0:01:08"]
[BlackClock "0:00:47"]

1. e4 {[%clk 0:03:00]}  c5 {[%clk 0:03:00]} 2. Nf3 {[%clk 0:03:00]}  Nc6 {[%clk 0:03:00]} 3. Bb5 {[%clk 0:03:00]}  d6 {[%clk 0:03:01]} 4. Bxc6+ {[%clk 0:02:58]}  bxc6 {[%clk 0:03:01]} 5. O-O {[%clk 0:02:57]}  e5 {[%clk 0:03:01]} 6. c3 {[%clk 0:02:55]}  f5 {[%clk 0:03:00]} 7. d4 {[%clk 0:02:52]}  cxd4 {[%clk 0:02:48]} 8. cxd4 {[%clk 0:02:49]}  fxe4 {[%clk 0:02:37]} 9. Ng5 {[%clk 0:02:48]}  Be7 {[%clk 0:02:15]} 10. Nxe4 {[%clk 0:02:31]}  Bf5 {[%clk 0:01:59]} 11. Ng3 {[%clk 0:02:29]}  Bg6 {[%clk 0:01:48]} 12. dxe5 {[%clk 0:02:28]}  dxe5 {[%clk 0:01:48]} 13. Qa4 {[%clk 0:02:26]}  Qc7 {[%clk 0:01:43]} 14. Nc3 {[%clk 0:02:26]}  Nf6 {[%clk 0:01:43]} 15. Bg5 {[%clk 0:02:25]}  O-O {[%clk 0:01:42]} 16. Rac1 {[%clk 0:02:24]}  Rac8 {[%clk 0:01:39]} 17. Nb5 {[%clk 0:01:59]}  Qb6 {[%clk 0:01:35]} 18. Nc3 {[%clk 0:01:40]}  Kh8 {[%clk 0:01:18]} 19. b3 {[%clk 0:01:28]}  Bc5 {[%clk 0:01:10]} 20. Bxf6 {[%clk 0:01:22]}  Rxf6 {[%clk 0:01:08]} 21. Nce4 {[%clk 0:01:22]}  Rf4 {[%clk 0:00:50]} 22. Rxc5 {[%clk 0:01:16]}  Bxe4 {[%clk 0:00:47]} 23. Rxe5 {[%clk 0:01:08]} 1-0


[Site "https://www.chess.com"]

[Event "Titled Tuesday Blitz April 12 Late 2022"]
[White "Paravyan, David"]
[Black "Begmuratov, Khumoyun"]
[WhiteFideId "4194985"]
[BlackFideId "14210207"]
[WhiteElo "2569"]
[BlackElo "1961"]
[Result "1-0"]
[Round "07"]
[TimeControl "180+1"]
[Date "2022.04.12"]
[WhiteClock "0:00:26"]
[BlackClock "0:00:12"]

1. e4 {[%clk 0:03:00]}  e5 {[%clk 0:02:56]} 2. Nf3 {[%clk 0:02:55]}  Nc6 {[%clk 0:02:56]} 3. Nc3 {[%clk 0:02:55]}  Nf6 {[%clk 0:02:56]} 4. d4 {[%clk 0:02:56]}  exd4 {[%clk 0:02:55]} 5. Nxd4 {[%clk 0:02:57]}  Bb4 {[%clk 0:02:56]} 6. Nxc6 {[%clk 0:02:57]}  bxc6 {[%clk 0:02:57]} 7. Bd3 {[%clk 0:02:57]}  d5 {[%clk 0:02:54]} 8. exd5 {[%clk 0:02:58]}  cxd5 {[%clk 0:02:55]} 9. O-O {[%clk 0:02:58]}  O-O {[%clk 0:02:56]} 10. Bg5 {[%clk 0:02:56]}  c6 {[%clk 0:02:54]} 11. Qf3 {[%clk 0:02:52]}  h6 {[%clk 0:02:46]} 12. Bxf6 {[%clk 0:02:50]}  Qxf6 {[%clk 0:02:46]} 13. Qxf6 {[%clk 0:02:50]}  gxf6 {[%clk 0:02:46]} 14. Ne2 {[%clk 0:02:51]}  Bd6 {[%clk 0:02:45]} 15. Nd4 {[%clk 0:02:46]}  c5 {[%clk 0:02:45]} 16. Nf5 {[%clk 0:02:46]}  Bxf5 {[%clk 0:02:45]} 17. Bxf5 {[%clk 0:02:47]}  Be5 {[%clk 0:02:44]} 18. Rab1 {[%clk 0:02:44]}  Rab8 {[%clk 0:02:44]} 19. b3 {[%clk 0:02:45]}  c4 {[%clk 0:02:43]} 20. Rbd1 {[%clk 0:02:43]}  Rfd8 {[%clk 0:02:43]} 21. Rfe1 {[%clk 0:02:42]}  cxb3 {[%clk 0:02:41]} 22. axb3 {[%clk 0:02:42]}  a5 {[%clk 0:02:42]} 23. Re3 {[%clk 0:02:39]}  Rb4 {[%clk 0:02:34]} 24. Rh3 {[%clk 0:02:30]}  Kg7 {[%clk 0:02:34]} 25. Rhd3 {[%clk 0:02:16]}  a4 {[%clk 0:02:31]} 26. bxa4 {[%clk 0:02:16]}  Rxa4 {[%clk 0:02:32]} 27. g3 {[%clk 0:02:16]}  d4 {[%clk 0:02:26]} 28. Kg2 {[%clk 0:02:17]}  Rc4 {[%clk 0:02:25]} 29. Rb3 {[%clk 0:02:11]}  Rb8 {[%clk 0:02:16]} 30. Ra3 {[%clk 0:02:07]}  Rb7 {[%clk 0:02:07]} 31. Be4 {[%clk 0:02:06]}  Re7 {[%clk 0:02:06]} 32. Bd3 {[%clk 0:02:06]}  Rc3 {[%clk 0:02:05]} 33. Ra4 {[%clk 0:02:06]}  Rd7 {[%clk 0:01:59]} 34. Rb1 {[%clk 0:02:05]}  Rc5 {[%clk 0:01:55]} 35. Rbb4 {[%clk 0:02:03]}  Rcd5 {[%clk 0:01:51]} 36. Rc4 {[%clk 0:02:02]}  Bb8 {[%clk 0:01:42]} 37. Be4 {[%clk 0:02:00]}  R5d6 {[%clk 0:01:40]} 38. Bf5 {[%clk 0:01:59]}  Rd8 {[%clk 0:01:39]} 39. Rab4 {[%clk 0:02:00]}  Rd5 {[%clk 0:01:35]} 40. Be4 {[%clk 0:01:59]}  R5d7 {[%clk 0:01:33]} 41. Rc6 {[%clk 0:01:52]}  Ba7 {[%clk 0:01:22]} 42. Ra4 {[%clk 0:01:50]}  Bb8 {[%clk 0:01:18]} 43. Kf3 {[%clk 0:01:45]}  Rd6 {[%clk 0:01:16]} 44. Rcc4 {[%clk 0:01:44]}  R6d7 {[%clk 0:01:15]} 45. Bf5 {[%clk 0:01:44]}  Rd5 {[%clk 0:01:15]} 46. Be4 {[%clk 0:01:44]}  R5d7 {[%clk 0:01:14]} 47. Ra6 {[%clk 0:01:44]}  Rd6 {[%clk 0:01:13]} 48. Ra8 {[%clk 0:01:45]}  Rb6 {[%clk 0:01:11]} 49. Bd3 {[%clk 0:01:41]}  Kf8 {[%clk 0:01:04]} 50. Kg4 {[%clk 0:01:40]}  Kg7 {[%clk 0:01:03]} 51. f4 {[%clk 0:01:38]}  Kf8 {[%clk 0:01:01]} 52. Ra5 {[%clk 0:01:36]}  Kg7 {[%clk 0:01:01]} 53. Raa4 {[%clk 0:01:34]}  Rb1 {[%clk 0:01:00]} 54. Rxd4 {[%clk 0:01:33]}  Re8 {[%clk 0:00:57]} 55. Rd7 {[%clk 0:01:31]}  h5+ {[%clk 0:00:52]} 56. Kxh5 {[%clk 0:01:18]}  Rh1 {[%clk 0:00:48]} 57. h4 {[%clk 0:01:10]}  Rg1 {[%clk 0:00:37]} 58. Kg4 {[%clk 0:00:58]}  Re3 {[%clk 0:00:36]} 59. Kf5 {[%clk 0:00:37]}  Rexg3 {[%clk 0:00:23]} 60. Bc4 {[%clk 0:00:36]}  Rg4 {[%clk 0:00:23]} 61. Rxf7+ {[%clk 0:00:36]}  Kh6 {[%clk 0:00:23]} 62. Rxf6+ {[%clk 0:00:36]}  Kh7 {[%clk 0:00:23]} 63. Bd3 {[%clk 0:00:34]}  Kg7 {[%clk 0:00:20]} 64. h5 {[%clk 0:00:28]}  Rxf4+ {[%clk 0:00:18]} 65. Rxf4 {[%clk 0:00:29]}  Bxf4 {[%clk 0:00:19]} 66. Rg6+ {[%clk 0:00:28]}  Rxg6 {[%clk 0:00:19]} 67. hxg6 {[%clk 0:00:29]}  Bd2 {[%clk 0:00:17]} 68. c4 {[%clk 0:00:28]}  Be3 {[%clk 0:00:17]} 69. Ke6 {[%clk 0:00:29]}  Kf8 {[%clk 0:00:16]} 70. Kd6 {[%clk 0:00:27]}  Bd4 {[%clk 0:00:14]} 71. c5 {[%clk 0:00:27]}  Ke8 {[%clk 0:00:14]} 72. c6 {[%clk 0:00:27]}  Kd8 {[%clk 0:00:11]} 73. c7+ {[%clk 0:00:26]}  Kc8 {[%clk 0:00:12]} 74. Ba6# {[%clk 0:00:26]} 1-0


[Site "https://www.chess.com"]

[Event "Titled Tuesday Blitz April 12 Late 2022"]
[White "Pesotskiy, Mikhail"]
[Black "Kavyev, Ruslan"]
[WhiteFideId "34164453"]
[BlackFideId "34110981"]
[WhiteElo "2010"]
[BlackElo "2182"]
[Result "1-0"]
[Round "07"]
[TimeControl "180+1"]
[Date "2022.04.13"]
[WhiteClock "0:00:04"]
[BlackClock "0:00:02"]

1. c4 {[%clk 0:03:00]}  Nf6 {[%clk 0:02:55]} 2. d4 {[%clk 0:03:00]}  g6 {[%clk 0:02:51]} 3. Nc3 {[%clk 0:03:00]}  Bg7 {[%clk 0:02:52]} 4. e4 {[%clk 0:03:01]}  d6 {[%clk 0:02:52]} 5. f3 {[%clk 0:03:02]}  O-O {[%clk 0:02:49]} 6. Be3 {[%clk 0:03:02]}  Nbd7 {[%clk 0:02:48]} 7. Bd3 {[%clk 0:03:01]}  a6 {[%clk 0:02:42]} 8. Nge2 {[%clk 0:02:58]}  c5 {[%clk 0:02:01]} 9. Qd2 {[%clk 0:02:56]}  Qa5 {[%clk 0:01:54]} 10. O-O {[%clk 0:02:55]}  Rb8 {[%clk 0:01:45]} 11. Rfd1 {[%clk 0:02:37]}  b5 {[%clk 0:01:43]} 12. Nd5 {[%clk 0:02:37]}  Nxd5 {[%clk 0:01:42]} 13. Qxa5 {[%clk 0:02:36]}  Nxe3 {[%clk 0:01:42]} 14. Rdc1 {[%clk 0:02:25]}  bxc4 {[%clk 0:01:39]} 15. Bxc4 {[%clk 0:02:25]}  cxd4 {[%clk 0:01:27]} 16. Rab1 {[%clk 0:02:23]}  Ne5 {[%clk 0:01:15]} 17. b3 {[%clk 0:01:57]}  N5xc4 {[%clk 0:01:10]} 18. bxc4 {[%clk 0:01:58]}  Nxc4 {[%clk 0:01:10]} 19. Qc7 {[%clk 0:01:35]}  Rxb1 {[%clk 0:01:02]} 20. Rxb1 {[%clk 0:01:36]}  Ne3 {[%clk 0:00:50]} 21. Rb8 {[%clk 0:01:32]}  d3 {[%clk 0:00:23]} 22. Rxc8 {[%clk 0:01:22]}  dxe2 {[%clk 0:00:24]} 23. Rxf8+ {[%clk 0:01:21]}  Bxf8 {[%clk 0:00:23]} 24. Kf2 {[%clk 0:01:21]}  Nxg2 {[%clk 0:00:22]} 25. Kxe2 {[%clk 0:01:20]}  Nf4+ {[%clk 0:00:22]} 26. Kf1 {[%clk 0:01:20]}  Ne6 {[%clk 0:00:21]} 27. Qa5 {[%clk 0:01:18]}  Nc5 {[%clk 0:00:22]} 28. Ke2 {[%clk 0:01:12]}  h5 {[%clk 0:00:20]} 29. Qd8 {[%clk 0:01:11]}  Kg7 {[%clk 0:00:20]} 30. Ke3 {[%clk 0:01:03]}  e5 {[%clk 0:00:16]} 31. Kd2 {[%clk 0:00:58]}  Ne6 {[%clk 0:00:14]} 32. Qc8 {[%clk 0:00:56]}  Nc5 {[%clk 0:00:14]} 33. Qc7 {[%clk 0:00:55]}  Ne6 {[%clk 0:00:13]} 34. Qa7 {[%clk 0:00:55]}  Nc5 {[%clk 0:00:12]} 35. Kc3 {[%clk 0:00:55]}  Kg8 {[%clk 0:00:12]} 36. Qa8 {[%clk 0:00:51]}  Kg7 {[%clk 0:00:12]} 37. Qe8 {[%clk 0:00:51]}  Ne6 {[%clk 0:00:10]} 38. Kc4 {[%clk 0:00:51]}  Nd4 {[%clk 0:00:10]} 39. Qa8 {[%clk 0:00:50]}  Nxf3 {[%clk 0:00:09]} 40. Qxa6 {[%clk 0:00:51]}  Nxh2 {[%clk 0:00:10]} 41. a4 {[%clk 0:00:50]}  Nf3 {[%clk 0:00:10]} 42. a5 {[%clk 0:00:50]}  h4 {[%clk 0:00:11]} 43. Qc8 {[%clk 0:00:47]}  Ng5 {[%clk 0:00:07]} 44. a6 {[%clk 0:00:44]}  h3 {[%clk 0:00:08]} 45. Kd3 {[%clk 0:00:38]}  h2 {[%clk 0:00:07]} 46. Qc1 {[%clk 0:00:39]}  Nh3 {[%clk 0:00:07]} 47. a7 {[%clk 0:00:12]}  Ng1 {[%clk 0:00:04]} 48. a8=Q {[%clk 0:00:12]}  h1=Q {[%clk 0:00:04]} 49. Qaa1 {[%clk 0:00:10]}  Qh3+ {[%clk 0:00:02]} 50. Qe3 {[%clk 0:00:10]}  Nf3 {[%clk 0:00:02]} 51. Qd1 {[%clk 0:00:04]} 1-0


[Site "https://www.chess.com"]

[Event "Titled Tuesday Blitz April 12 Late 2022"]
[White "Pinheiro, Iung Alicio de O."]
[Black "Mirzoev, Azer"]
[WhiteFideId "2104350"]
[BlackFideId "13400304"]
[WhiteElo "2532"]
[BlackElo "2701"]
[Result "1-0"]
[Round "07"]
[TimeControl "180+1"]
[Date "2022.04.13"]
[WhiteClock "0:00:05"]
[BlackClock "0:00:01"]

1. c4 {[%clk 0:02:59]}  e6 {[%clk 0:02:59]} 2. g3 {[%clk 0:02:59]}  d5 {[%clk 0:02:58]} 3. Bg2 {[%clk 0:03:00]}  Nf6 {[%clk 0:02:58]} 4. Nf3 {[%clk 0:03:00]}  Be7 {[%clk 0:02:57]} 5. O-O {[%clk 0:03:00]}  O-O {[%clk 0:02:57]} 6. Qc2 {[%clk 0:02:52]}  c5 {[%clk 0:02:55]} 7. d4 {[%clk 0:02:51]}  cxd4 {[%clk 0:02:46]} 8. Nxd4 {[%clk 0:02:52]}  Nc6 {[%clk 0:02:44]} 9. Nxc6 {[%clk 0:02:51]}  bxc6 {[%clk 0:02:44]} 10. b3 {[%clk 0:02:49]}  a5 {[%clk 0:02:38]} 11. Nc3 {[%clk 0:02:48]}  Ba6 {[%clk 0:02:37]} 12. Rd1 {[%clk 0:02:47]}  Qb8 {[%clk 0:02:33]} 13. Bf4 {[%clk 0:02:29]}  Qa7 {[%clk 0:02:32]} 14. Be3 {[%clk 0:02:23]}  Bc5 {[%clk 0:02:28]} 15. Bxc5 {[%clk 0:02:20]}  Qxc5 {[%clk 0:02:28]} 16. Na4 {[%clk 0:02:16]}  Qa7 {[%clk 0:02:19]} 17. e4 {[%clk 0:01:52]}  dxc4 {[%clk 0:02:09]} 18. bxc4 {[%clk 0:01:38]}  e5 {[%clk 0:02:08]} 19. c5 {[%clk 0:01:35]}  Rad8 {[%clk 0:01:41]} 20. Qc3 {[%clk 0:01:28]}  Qc7 {[%clk 0:01:07]} 21. Nb6 {[%clk 0:01:19]}  Be2 {[%clk 0:01:06]} 22. Re1 {[%clk 0:01:14]}  Bg4 {[%clk 0:00:59]} 23. Qxa5 {[%clk 0:01:12]}  Rd4 {[%clk 0:00:51]} 24. a4 {[%clk 0:00:59]}  h5 {[%clk 0:00:50]} 25. Qc3 {[%clk 0:00:55]}  Rfd8 {[%clk 0:00:43]} 26. a5 {[%clk 0:00:55]}  h4 {[%clk 0:00:38]} 27. a6 {[%clk 0:00:54]}  Qa7 {[%clk 0:00:39]} 28. h3 {[%clk 0:00:48]}  Be6 {[%clk 0:00:37]} 29. g4 {[%clk 0:00:45]}  Ne8 {[%clk 0:00:35]} 30. Bf1 {[%clk 0:00:40]}  Nc7 {[%clk 0:00:33]} 31. Qe3 {[%clk 0:00:35]}  Nb5 {[%clk 0:00:32]} 32. Qg5 {[%clk 0:00:27]}  f6 {[%clk 0:00:19]} 33. Qxh4 {[%clk 0:00:28]}  Nc3 {[%clk 0:00:19]} 34. g5 {[%clk 0:00:22]}  fxg5 {[%clk 0:00:17]} 35. Qxg5 {[%clk 0:00:22]}  Bf7 {[%clk 0:00:05]} 36. Qxe5 {[%clk 0:00:19]}  Nb5 {[%clk 0:00:03]} 37. Bxb5 {[%clk 0:00:16]}  cxb5 {[%clk 0:00:03]} 38. Qg5 {[%clk 0:00:07]}  Rd3 {[%clk 0:00:02]} 39. Qg4 {[%clk 0:00:06]}  b4 {[%clk 0:00:01]} 40. Qf4 {[%clk 0:00:04]}  b3 {[%clk 0:00:01]} 41. Rab1 {[%clk 0:00:05]}  Qxa6 {[%clk 0:00:01]} 42. Nd5 {[%clk 0:00:05]} 1-0


[Site "https://www.chess.com"]

[Event "Titled Tuesday Blitz April 12 Late 2022"]
[White "Plazuelo Pascual, Juan"]
[Black "Quintiliano Pinto, Renato R."]
[WhiteFideId "32059566"]
[BlackFideId "2117568"]
[WhiteElo "2359"]
[BlackElo "2439"]
[Result "0-1"]
[Round "07"]
[TimeControl "180+1"]
[Date "2022.04.12"]
[WhiteClock "0:00:01"]
[BlackClock "0:00:10"]

1. d4 {[%clk 0:03:00]}  Nf6 {[%clk 0:02:56]} 2. c4 {[%clk 0:03:01]}  e6 {[%clk 0:02:56]} 3. Nc3 {[%clk 0:03:00]}  Bb4 {[%clk 0:02:56]} 4. Qc2 {[%clk 0:02:59]}  c5 {[%clk 0:02:55]} 5. dxc5 {[%clk 0:02:56]}  O-O {[%clk 0:02:55]} 6. Nf3 {[%clk 0:02:55]}  Na6 {[%clk 0:02:54]} 7. g3 {[%clk 0:02:55]}  Nxc5 {[%clk 0:02:53]} 8. Bg2 {[%clk 0:02:56]}  b6 {[%clk 0:02:54]} 9. O-O {[%clk 0:02:52]}  Bb7 {[%clk 0:02:54]} 10. Nb5 {[%clk 0:02:45]}  Be4 {[%clk 0:02:52]} 11. Qd1 {[%clk 0:02:45]}  Nb7 {[%clk 0:02:52]} 12. Bf4 {[%clk 0:02:32]}  Rc8 {[%clk 0:02:43]} 13. Rc1 {[%clk 0:02:24]}  a6 {[%clk 0:02:41]} 14. Nd6 {[%clk 0:02:21]}  Nxd6 {[%clk 0:02:38]} 15. Bxd6 {[%clk 0:02:21]}  Bxd6 {[%clk 0:02:38]} 16. Qxd6 {[%clk 0:02:22]}  Rc6 {[%clk 0:02:35]} 17. Qd4 {[%clk 0:02:18]}  Qc7 {[%clk 0:02:35]} 18. Ne5 {[%clk 0:02:03]}  Bxg2 {[%clk 0:02:33]} 19. Kxg2 {[%clk 0:02:03]}  Rc5 {[%clk 0:02:24]} 20. Nd3 {[%clk 0:02:03]}  Ra5 {[%clk 0:02:19]} 21. a3 {[%clk 0:01:58]}  Rc8 {[%clk 0:02:11]} 22. Kg1 {[%clk 0:01:54]}  Ra4 {[%clk 0:01:57]} 23. Rfd1 {[%clk 0:01:25]}  h6 {[%clk 0:01:49]} 24. Ne5 {[%clk 0:01:18]}  d5 {[%clk 0:01:38]} 25. b3 {[%clk 0:00:52]}  Rxa3 {[%clk 0:01:35]} 26. Qb2 {[%clk 0:00:44]}  Rxb3 {[%clk 0:01:24]} 27. Qxb3 {[%clk 0:00:43]}  Qxe5 {[%clk 0:01:24]} 28. Qxb6 {[%clk 0:00:39]}  Qxe2 {[%clk 0:01:12]} 29. cxd5 {[%clk 0:00:33]}  Rxc1 {[%clk 0:01:11]} 30. Rxc1 {[%clk 0:00:32]}  Nxd5 {[%clk 0:01:12]} 31. Qb8+ {[%clk 0:00:22]}  Kh7 {[%clk 0:01:11]} 32. Qb7 {[%clk 0:00:23]}  f6 {[%clk 0:00:57]} 33. Ra1 {[%clk 0:00:21]}  a5 {[%clk 0:00:43]} 34. Qa7 {[%clk 0:00:16]}  h5 {[%clk 0:00:34]} 35. Qxa5 {[%clk 0:00:16]}  h4 {[%clk 0:00:32]} 36. Re1 {[%clk 0:00:16]}  Qg4 {[%clk 0:00:29]} 37. Qa6 {[%clk 0:00:12]}  Nf4 {[%clk 0:00:25]} 38. Qd6 {[%clk 0:00:05]}  Nh3+ {[%clk 0:00:24]} 39. Kg2 {[%clk 0:00:05]}  Ng5 {[%clk 0:00:23]} 40. Qd3+ {[%clk 0:00:04]}  f5 {[%clk 0:00:21]} 41. Kh1 {[%clk 0:00:02]}  Ne4 {[%clk 0:00:14]} 42. Rf1 {[%clk 0:00:02]}  Qh3 {[%clk 0:00:11]} 43. Kg1 {[%clk 0:00:01]}  Nf6 {[%clk 0:00:10]} 44. Qe3 {[%clk 0:00:01]}  Ng4 {[%clk 0:00:10]} 0-1


[Site "https://www.chess.com"]

[Event "Titled Tuesday Blitz April 12 Late 2022"]
[White "Pourkashiyan, Atousa"]
[Black "Kanyamarala, Tarun"]
[WhiteFideId "12502014"]
[BlackFideId "45004714"]
[WhiteElo "2247"]
[BlackElo "2177"]
[Result "0-1"]
[Round "07"]
[TimeControl "180+1"]
[Date "2022.04.13"]
[WhiteClock "0:00:07"]
[BlackClock "0:00:34"]

1. e4 {[%clk 0:03:00]}  c5 {[%clk 0:02:53]} 2. Nf3 {[%clk 0:02:58]}  e6 {[%clk 0:02:53]} 3. d4 {[%clk 0:02:59]}  cxd4 {[%clk 0:02:54]} 4. Nxd4 {[%clk 0:03:00]}  Nf6 {[%clk 0:02:54]} 5. Nc3 {[%clk 0:03:00]}  Nc6 {[%clk 0:02:55]} 6. Ndb5 {[%clk 0:02:59]}  Bc5 {[%clk 0:02:54]} 7. Nd6+ {[%clk 0:02:48]}  Ke7 {[%clk 0:02:54]} 8. Nxc8+ {[%clk 0:02:48]}  Rxc8 {[%clk 0:02:53]} 9. Be2 {[%clk 0:02:47]}  Re8 {[%clk 0:02:34]} 10. O-O {[%clk 0:02:42]}  Kf8 {[%clk 0:02:35]} 11. Bg5 {[%clk 0:02:41]}  Kg8 {[%clk 0:02:35]} 12. Kh1 {[%clk 0:02:28]}  h6 {[%clk 0:02:34]} 13. Bh4 {[%clk 0:02:26]}  Be7 {[%clk 0:02:29]} 14. f4 {[%clk 0:02:23]}  d5 {[%clk 0:02:24]} 15. e5 {[%clk 0:02:08]}  Nd7 {[%clk 0:02:24]} 16. Bxe7 {[%clk 0:02:08]}  Nxe7 {[%clk 0:02:16]} 17. Bd3 {[%clk 0:02:06]}  Nc5 {[%clk 0:02:11]} 18. Nb5 {[%clk 0:02:05]}  Nxd3 {[%clk 0:02:08]} 19. Qxd3 {[%clk 0:02:06]}  Nf5 {[%clk 0:02:03]} 20. Nxa7 {[%clk 0:02:03]}  Rc4 {[%clk 0:02:01]} 21. Nb5 {[%clk 0:02:01]}  Qb6 {[%clk 0:01:57]} 22. b3 {[%clk 0:01:42]}  Re4 {[%clk 0:01:52]} 23. c4 {[%clk 0:01:33]}  Re3 {[%clk 0:01:48]} 24. Qd2 {[%clk 0:01:24]}  dxc4 {[%clk 0:01:46]} 25. bxc4 {[%clk 0:01:25]}  Rd8 {[%clk 0:01:45]} 26. Qf2 {[%clk 0:01:22]}  Qc6 {[%clk 0:01:40]} 27. Rac1 {[%clk 0:01:15]}  Red3 {[%clk 0:01:35]} 28. Nd6 {[%clk 0:00:56]}  Nxd6 {[%clk 0:01:32]} 29. exd6 {[%clk 0:00:57]}  R8xd6 {[%clk 0:01:31]} 30. f5 {[%clk 0:00:56]}  Rd2 {[%clk 0:01:24]} 31. Qg3 {[%clk 0:00:52]}  exf5 {[%clk 0:01:19]} 32. Qf3 {[%clk 0:00:39]}  Rxa2 {[%clk 0:01:07]} 33. Qxc6 {[%clk 0:00:38]}  Rxc6 {[%clk 0:01:07]} 34. h3 {[%clk 0:00:35]}  g6 {[%clk 0:01:04]} 35. Rb1 {[%clk 0:00:35]}  Rxc4 {[%clk 0:00:58]} 36. Rxb7 {[%clk 0:00:35]}  Rcc2 {[%clk 0:00:59]} 37. Rg1 {[%clk 0:00:35]}  g5 {[%clk 0:00:54]} 38. Rb5 {[%clk 0:00:33]}  f4 {[%clk 0:00:51]} 39. Rf5 {[%clk 0:00:33]}  Kg7 {[%clk 0:00:50]} 40. Rb1 {[%clk 0:00:18]}  Rxg2 {[%clk 0:00:47]} 41. Rb7 {[%clk 0:00:18]}  Rgb2 {[%clk 0:00:34]} 42. Rbxf7+ {[%clk 0:00:17]}  Kg6 {[%clk 0:00:34]} 43. R7f6+ {[%clk 0:00:14]}  Kh5 {[%clk 0:00:34]} 44. h4 {[%clk 0:00:07]}  Rb1# {[%clk 0:00:34]} 0-1


[Site "https://www.chess.com"]

[Event "Titled Tuesday Blitz April 12 Late 2022"]
[White "Pranav, V"]
[Black "Najer, Evgeniy"]
[WhiteFideId "25060783"]
[BlackFideId "4118987"]
[WhiteElo "2349"]
[BlackElo "2562"]
[Result "0-1"]
[Round "07"]
[TimeControl "180+1"]
[Date "2022.04.12"]
[WhiteClock "0:01:06"]
[BlackClock "0:00:59"]

1. Nf3 {[%clk 0:03:00]}  d5 {[%clk 0:02:50]} 2. g3 {[%clk 0:03:01]}  Bf5 {[%clk 0:02:44]} 3. Bg2 {[%clk 0:03:01]}  e6 {[%clk 0:02:44]} 4. d3 {[%clk 0:03:01]}  Nf6 {[%clk 0:02:43]} 5. O-O {[%clk 0:03:01]}  h6 {[%clk 0:02:41]} 6. Nbd2 {[%clk 0:03:00]}  Be7 {[%clk 0:02:41]} 7. Re1 {[%clk 0:02:59]}  O-O {[%clk 0:02:39]} 8. c3 {[%clk 0:02:59]}  c5 {[%clk 0:02:36]} 9. Ne5 {[%clk 0:02:55]}  Nc6 {[%clk 0:02:34]} 10. Nxc6 {[%clk 0:02:55]}  bxc6 {[%clk 0:02:34]} 11. e4 {[%clk 0:02:56]}  Bh7 {[%clk 0:02:33]} 12. Qe2 {[%clk 0:02:56]}  a5 {[%clk 0:02:32]} 13. e5 {[%clk 0:02:44]}  Nd7 {[%clk 0:02:31]} 14. Nf1 {[%clk 0:02:43]}  a4 {[%clk 0:02:30]} 15. h4 {[%clk 0:02:42]}  Qa5 {[%clk 0:02:28]} 16. a3 {[%clk 0:02:38]}  Qb5 {[%clk 0:02:05]} 17. Rd1 {[%clk 0:02:38]}  Rab8 {[%clk 0:02:00]} 18. Nh2 {[%clk 0:02:28]}  Qa6 {[%clk 0:01:37]} 19. Bf1 {[%clk 0:02:24]}  Kh8 {[%clk 0:01:29]} 20. Bf4 {[%clk 0:02:18]}  Rb3 {[%clk 0:01:27]} 21. Rd2 {[%clk 0:02:17]}  Rfb8 {[%clk 0:01:26]} 22. Rc1 {[%clk 0:02:16]}  Qb7 {[%clk 0:01:26]} 23. Rcc2 {[%clk 0:02:14]}  c4 {[%clk 0:01:24]} 24. Qh5 {[%clk 0:01:30]}  Bg6 {[%clk 0:01:21]} 25. Qf3 {[%clk 0:01:21]}  Nc5 {[%clk 0:01:13]} 26. dxc4 {[%clk 0:01:05]}  Bxc2 {[%clk 0:01:11]} 27. Rxc2 {[%clk 0:01:06]}  Rxb2 {[%clk 0:01:11]} 28. Rxb2 {[%clk 0:01:06]}  Qxb2 {[%clk 0:01:11]} 29. Bxh6 {[%clk 0:01:07]}  gxh6 {[%clk 0:01:03]} 30. Qxf7 {[%clk 0:01:07]}  Rf8 {[%clk 0:01:00]} 31. Qxe7 {[%clk 0:01:05]}  Qxf2+ {[%clk 0:00:59]} 32. Kh1 {[%clk 0:01:06]}  Ne4 {[%clk 0:00:59]} 0-1


[Site "https://www.chess.com"]